bitfinex/quotes_ETHUSD_20240816
["timestamp","ask_amount","ask_price","bid_price","bid_amount"]
[1723796103917,3.27108,2624.2,2623.6,3.81143]
[1723796104311,3.27108,2624.2,2623.6,7.62287]
[1723796104516,3.27108,2624.2,2623.6,3.81143]
[1723796104748,0.327108,2624.1,2623.6,3.81143]
[1723796105255,0.327108,2624.1,2623.6,7.6229]
[1723796105413,0.327108,2624.1,2623.7,3.81131]
[1723796105614,2.3028,2624.2,2623.9,3.81101]
[1723796107062,2.3028,2624.2,2623.8,3.81114]
[1723796107946,2.3028,2624.2,2623.6,3.81148]
[1723796108331,2.3028,2624.2,2623.6,3.81146]
[1723796108530,2.3028,2624.2,2623.6,7.62292]
[1723796108979,3.652119,2624.2,2623.6,3.81146]
[1723796109319,3.652119,2624.2,2623.6,7.62293]
[1723796109958,3.652119,2624.2,2623.7,3.8114]
[1723796110451,2.3028,2624.2,2623.7,3.8114]
[1723796111657,2.3028,2624.2,2623.8,35.0]
[1723796112516,2.3028,2624.2,2623.6,3.81146]
[1723796112718,0.16167021,2624.1,2623.6,3.81146]
[1723796112915,0.16167021,2624.1,2623.4,3.81178]
[1723796112916,2.3186,2624.1,2623.4,3.81175]
[1723796113165,2.56504702,2624.1,2623.4,3.81175]
[1723796113345,2.3534,2624.0,2623.2,3.81205]
[1723796113525,2.3534,2623.8,2623.0,3.81234]
[1723796113877,2.3534,2623.6,2623.0,3.81234]
[1723796114224,2.3534,2623.6,2622.8,3.81264]
[1723796114529,0.1617578,2623.5,2622.9,3.81256]
[1723796114731,3.707875,2623.6,2622.9,3.81256]
[1723796114918,3.707875,2623.6,2623.0,3.81242]
[1723796115123,3.707875,2623.6,2622.8,7.62522]
[1723796115358,0.16175637,2623.5,2622.8,3.81258]
[1723796115559,3.707875,2623.6,2622.9,3.81247]
[1723796115722,0.161766,2623.5,2622.9,3.81247]
[1723796115983,3.707875,2623.6,2622.9,3.81247]
[1723796116187,3.707875,2623.6,2622.8,4.193838]
[1723796116188,2.6268192,2623.5,2622.8,7.62521]
[1723796116382,0.16176133,2623.4,2622.8,7.62521]
[1723796116683,0.16176133,2623.4,2622.8,3.81258]
[1723796116684,2.3686,2623.3,2622.8,3.81258]
[1723796116998,2.44475787,2623.3,2622.8,3.81258]
[1723796117612,2.4243,2623.1,2622.6,3.81293]
[1723796117818,0.07615787,2623.0,2622.5,35.0]
[1723796118121,2.4243,2623.1,2622.5,35.0]
[1723796118329,0.16181642,2623.0,2622.5,35.0]
[1723796118483,2.4243,2622.9,2622.5,38.81303]
[1723796118686,2.4243,2622.9,2622.5,3.81303]
[1723796121096,2.4243,2622.9,2622.6,3.81299]
[1723796122198,0.16184167,2622.8,2622.6,3.81299]
[1723796122396,2.4243,2622.9,2622.6,3.81299]
[1723796122601,0.16184324,2622.8,2622.6,3.81299]
[1723796122926,2.4243,2622.9,2622.6,3.81299]
[1723796123231,0.16184181,2622.8,2622.6,3.81299]
[1723796123531,0.16184181,2622.7,2622.6,3.81299]
[1723796123832,0.16184181,2622.7,2622.6,7.62599]
[1723796123985,2.4243,2622.9,2622.8,3.81271]
[1723796124288,0.16179933,2622.9,2622.8,3.81271]
[1723796126014,2.4176,2623.1,2622.8,3.81271]
[1723796126204,0.16180171,2623.0,2622.8,3.81271]
[1723796126402,0.16180171,2622.9,2622.8,3.81271]
[1723796126587,0.16180171,2623.0,2622.8,3.81271]
[1723796126924,0.41974188,2623.0,2622.7,3.81284]
[1723796127126,2.60020171,2622.9,2622.5,3.81306]
[1723796127630,2.60020171,2622.9,2622.5,7.62609]
[1723796127840,2.60020171,2622.9,2622.5,3.81302]
[1723796128389,0.16180171,2622.8,2622.5,7.62609]
[1723796128589,2.4384,2622.9,2622.5,7.62609]
[1723796128899,2.4384,2622.9,2622.6,3.81298]
[1723796129709,2.4384,2622.9,2622.5,3.81302]
[1723796130650,0.16185826,2622.8,2622.5,3.81302]
[1723796130799,0.16185826,2622.8,2622.5,7.62609]
[1723796131320,2.4384,2622.9,2622.5,7.62609]
[1723796131536,2.4384,2622.9,2622.5,3.81302]
[1723796132512,0.16185386,2622.8,2622.5,3.81302]
[1723796132732,2.4384,2622.9,2622.5,3.81302]
[1723796132895,0.16187395,2622.8,2622.5,7.62609]
[1723796133095,0.16187395,2622.8,2622.6,35.0]
[1723796134143,0.16187395,2622.8,2622.5,3.81302]
[1723796134502,0.16187395,2622.8,2622.5,38.81302]
[1723796134739,2.3454,2622.7,2622.5,35.0]
[1723796134948,0.16187395,2622.6,2622.5,35.0]
[1723796135254,0.16188033,2622.6,2622.5,35.0]
[1723796135467,0.16188033,2622.6,2622.3,3.81335]
[1723796135671,0.16188172,2622.5,2622.3,3.81335]
[1723796135892,0.3268859,2622.6,2622.3,3.81335]
[1723796136053,0.16190852,2622.5,2622.3,3.81335]
[1723796136253,0.3268859,2622.6,2622.3,3.81335]
[1723796136477,0.16189218,2622.5,2622.3,3.81335]
[1723796136674,0.3268859,2622.6,2622.3,3.81335]
[1723796136846,0.16189431,2622.5,2622.3,3.81335]
[1723796137194,0.25072803,2622.6,2622.1,7.62728]
[1723796137340,0.16191161,2622.5,2622.1,3.81363]
[1723796137755,2.3458,2622.4,2622.1,7.62728]
[1723796137974,2.3458,2622.4,2622.2,35.0]
[1723796138183,2.3458,2622.4,2622.1,3.81363]
[1723796138752,2.3458,2622.4,2622.1,38.81363]
[1723796138996,2.3458,2622.4,2622.1,3.81363]
[1723796139338,2.3458,2622.4,2622.2,3.81351]
[1723796140581,11.19267,2622.9,2622.2,3.81351]
[1723796140582,2.3275,2622.8,2622.5,3.81307]
[1723796140882,0.16183407,2622.7,2622.5,38.81307]
[1723796141081,2.3275,2622.8,2622.5,38.81307]
[1723796141264,0.16182642,2622.7,2622.5,42.62613]
[1723796141466,2.3275,2622.8,2622.5,3.81306]
[1723796141791,0.1618405,2622.7,2622.5,3.81306]
[1723796141968,0.1618405,2622.6,2622.5,38.81306]
[1723796142281,2.3275,2622.8,2622.5,42.62613]
[1723796142485,0.16184582,2622.7,2622.5,38.81306]
[1723796142650,0.16184582,2622.6,2622.5,3.81306]
[1723796143581,0.16184005,2622.6,2622.5,3.81306]
[1723796146797,0.16184005,2622.6,2622.4,3.81324]
[1723796147080,0.16184005,2622.5,2622.4,7.62646]
[1723796147649,0.16186268,2622.5,2622.4,7.62646]
[1723796148386,0.16186268,2622.5,2622.4,3.81322]
[1723796149385,2.3515,2622.4,2622.3,3.81344]
[1723796149563,2.51336268,2622.4,2622.3,3.81344]
[1723796151574,2.51336268,2622.4,2622.2,3.81358]
[1723796151900,0.16190507,2622.3,2622.2,3.81358]
[1723796153002,0.16190507,2622.3,2622.0,3.81378]
[1723796153150,0.16190507,2622.2,2622.0,3.81378]
[1723796153350,0.16190507,2622.1,2622.0,3.81378]
[1723796154577,0.16190507,2622.1,2621.9,3.81399]
[1723796154814,0.16190507,2622.0,2621.9,3.81399]
[1723796155280,2.45460507,2622.0,2621.9,3.81399]
[1723796155622,2.45460507,2622.0,2621.7,3.81421]
[1723796155914,0.16190507,2621.9,2621.6,3.81437]
[1723796156132,0.16190507,2621.8,2621.6,3.81437]
[1723796156296,2.2927,2622.0,2621.6,3.81437]
[1723796156495,0.16195418,2621.9,2621.7,3.81427]
[1723796156683,0.16195418,2621.8,2621.7,3.81427]
[1723796157994,2.2927,2622.0,2621.8,3.81417]
[1723796158196,0.16196048,2621.9,2621.8,3.81417]
[1723796158721,0.16196048,2621.9,2621.8,7.62834]
[1723796160210,0.16196048,2621.9,2621.8,8.391174]
[1723796160398,2.436,2622.4,2622.3,3.81344]
[1723796160598,2.59790553,2622.4,2622.3,3.81344]
[1723796161435,0.16190553,2622.4,2622.3,7.62688]
[1723796162269,0.16190553,2622.4,2622.3,3.81344]
[1723796163393,0.16190553,2622.4,2622.2,3.81356]
[1723796163701,0.16190553,2622.3,2622.2,3.81356]
[1723796165491,0.16190553,2622.3,2622.2,11.44074]
[1723796165676,1.19870111,2623.0,2622.9,3.81257]
[1723796165877,0.16181793,2623.0,2622.9,7.62514]
[1723796166326,0.16181793,2623.0,2622.9,3.81257]
[1723796166488,2.4748,2623.1,2622.9,3.81257]
[1723796166694,0.16179572,2623.0,2622.9,3.81257]
[1723796166898,0.16178877,2623.0,2622.9,3.81257]
[1723796170126,1.19870111,2623.2,2622.9,3.81257]
[1723796170312,0.16179702,2623.1,2622.9,3.81257]
[1723796170513,0.16179702,2623.0,2622.9,3.81257]
[1723796170817,0.16179643,2623.0,2622.9,3.81257]
[1723796171175,0.16179643,2623.0,2622.7,3.81278]
[1723796171410,0.16179643,2623.0,2622.2,2.76353148]
[1723796171411,2.44169643,2622.9,2622.6,3.81292]
[1723796171614,0.16179643,2622.8,2622.5,3.81305]
[1723796171815,0.16179643,2622.8,2622.6,3.81296]
[1723796172018,0.16179643,2622.7,2622.6,3.81296]
[1723796172734,0.16179643,2622.8,2622.5,7.62612]
[1723796172936,0.16179643,2622.7,2622.6,3.813]
[1723796173138,0.16182027,2622.8,2622.7,3.81286]
[1723796173434,0.16181843,2622.8,2622.7,3.81286]
[1723796174145,0.16181843,2622.8,2622.7,7.62572]
[1723796174454,2.52611843,2622.8,2622.1,3.81363]
[1723796174632,0.41443027,2622.7,2622.5,3.81303]
[1723796174811,3.56300111,2622.8,2622.6,3.813]
[1723796175136,0.16184275,2622.7,2622.6,3.81292]
[1723796176205,1.19870111,2623.1,2622.9,3.81245]
[1723796176404,0.1617949,2623.0,2622.9,3.81245]
[1723796176650,0.1617949,2623.0,2622.9,7.62502]
[1723796177310,0.1617949,2623.0,2622.9,3.81245]
[1723796179336,2.3643,2623.2,2623.0,3.8124]
[1723796179522,0.16177081,2623.1,2623.0,3.8124]
[1723796180118,0.16177081,2623.1,2623.0,7.62482]
[1723796180718,7.38,2623.3,2623.2,3.81213]
[1723796180914,0.16174979,2623.3,2623.2,7.62426]
[1723796181156,1.59808993,2623.6,2623.2,7.62426]
[1723796181157,12.49189104,2623.8,2623.4,3.81184]
[1723796181316,0.16170033,2623.7,2623.4,3.81184]
[1723796181609,0.16170033,2623.6,2623.5,7.6234]
[1723796181812,2.3151,2623.8,2623.7,3.81141]
[1723796182050,0.16166506,2623.8,2623.7,3.81141]
[1723796182211,7.38,2624.1,2623.7,3.81141]
[1723796182411,0.16162807,2624.0,2623.9,3.81097]
[1723796183040,2.3731,2624.2,2624.0,3.81088]
[1723796183236,0.16162677,2624.1,2623.7,3.81127]
[1723796183422,0.16162677,2624.0,2623.7,3.81127]
[1723796183624,0.16162677,2623.9,2623.7,3.81127]
[1723796183853,0.39289812,2624.1,2623.7,7.62259]
[1723796184015,0.16164583,2624.0,2623.8,3.81115]
[1723796184216,2.3731,2624.2,2624.0,3.81088]
[1723796184434,0.16162533,2624.1,2624.0,3.81088]
[1723796186051,0.16162533,2624.1,2623.8,7.62233]
[1723796186264,0.25347253,2624.1,2623.9,3.81101]
[1723796186623,0.25347253,2624.1,2624.0,3.81097]
[1723796186870,2.3734,2624.4,2624.0,3.81097]
[1723796186871,2.3734,2624.4,2624.0,7.62186]
[1723796187015,0.16160754,2624.3,2624.0,3.81089]
[1723796187357,0.16160754,2624.2,2624.0,3.81089]
[1723796187571,0.34895258,2624.3,2624.0,3.81089]
[1723796187774,0.16161398,2624.2,2624.0,3.81089]
[1723796188067,0.16161398,2624.1,2624.0,3.81089]
[1723796188463,0.16161398,2624.2,2624.0,3.81089]
[1723796188761,0.28839666,2624.2,2624.0,3.81089]
[1723796188962,0.28839666,2624.2,2624.1,3.81083]
[1723796189171,0.16161325,2624.2,2624.1,3.81083]
[1723796189572,0.16161325,2624.2,2623.9,3.811]
[1723796189759,0.34895258,2624.3,2624.0,3.81097]
[1723796189961,0.16161634,2624.2,2624.0,3.81097]
[1723796190159,0.28839689,2624.2,2624.0,3.81097]
[1723796191455,0.28839689,2624.2,2624.0,7.62194]
[1723796191673,0.28839689,2624.2,2624.0,3.81097]
[1723796191872,0.28839689,2624.2,2624.0,3.81089]
[1723796192070,2.3734,2624.4,2623.7,0.07621744]
[1723796192384,0.16159565,2624.3,2623.7,0.07621744]
[1723796192679,2.3734,2624.4,2624.3,3.81053]
[1723796192977,2.53499282,2624.4,2624.3,3.81053]
[1723796193162,2.3734,2624.4,2624.3,3.81053]
[1723796193834,2.3734,2624.4,2624.2,7.62118]
[1723796194269,12.28,2624.9,2623.6,5.6235]
[1723796194270,19.66,2624.9,2624.3,3.81053]
[1723796194473,19.66,2624.9,2624.5,3.81013]
[1723796194474,2.63253058,2624.8,2624.5,3.81013]
[1723796194770,2.471,2624.8,2624.6,3.81]
[1723796195550,2.471,2624.8,2624.6,3.8101]
[1723796195947,2.471,2624.8,2624.5,3.81013]
[1723796196152,2.7181,2624.8,2624.5,3.81013]
[1723796197364,2.7181,2624.8,2624.5,7.6203]
[1723796197684,2.7181,2624.8,2624.5,3.81013]
[1723796197878,2.7181,2624.8,2624.5,7.62029]
[1723796198059,2.7181,2624.8,2624.6,3.81009]
[1723796198603,2.7181,2624.8,2624.7,3.80995]
[1723796198811,2.471,2624.8,2624.7,3.80995]
[1723796199489,2.471,2624.8,2624.5,3.81011]
[1723796200065,2.471,2624.8,2624.5,7.62026]
[1723796200399,2.471,2624.8,2624.5,7.62027]
[1723796200546,2.471,2624.8,2624.6,3.81007]
[1723796201178,2.7181,2624.8,2624.6,3.81007]
[1723796201386,2.7181,2624.8,2624.5,7.62027]
[1723796204284,2.7181,2624.8,2624.5,3.81011]
[1723796205855,2.7181,2624.8,2624.3,7.6209]
[1723796206059,0.43333837,2624.7,2624.3,7.6209]
[1723796206342,0.27181,2624.7,2624.3,7.6209]
[1723796206583,0.27181,2624.7,2624.4,3.81037]
[1723796207256,0.27181,2624.7,2624.5,3.81023]
[1723796207655,0.1615295,2624.6,2624.5,3.81023]
[1723796211184,2.471,2624.8,2624.7,3.80995]
[1723796211385,0.16151118,2624.8,2624.7,7.6199]
[1723796211623,2.3471,2625.1,2625.0,3.80952]
[1723796211817,2.50854121,2625.1,2625.0,7.61904]
[1723796211986,0.16144121,2625.1,2625.0,7.61904]
[1723796213438,9.7635,2625.6,2625.4,3.80892]
[1723796213728,0.16142139,2625.5,2625.4,3.80892]
[1723796215584,2.3835,2625.6,2625.4,3.80892]
[1723796215889,0.16138823,2625.5,2625.4,3.80892]
[1723796221690,2.2742,2625.4,2625.1,3.80928]
[1723796221905,2.2742,2625.4,2625.3,3.80908]
[1723796222127,2.66302123,2625.4,2625.1,3.80924]
[1723796222334,0.16140123,2625.3,2624.9,3.80954]
[1723796222547,2.2738,2625.1,2624.4,3.8103]
[1723796222746,4.0468991,2625.2,2624.2,3.81065]
[1723796222747,2.2738,2624.9,2624.2,3.81065]
[1723796222908,2.2738,2624.7,2624.2,3.81065]
[1723796223241,0.16140123,2624.6,2624.2,3.81059]
[1723796223608,0.16140123,2624.6,2624.3,3.81044]
[1723796224243,0.16140123,2624.6,2624.4,3.81038]
[1723796224429,0.16140123,2624.6,2624.4,7.62076]
[1723796224633,0.16140123,2624.6,2624.5,7.62048]
[1723796224835,0.43132012,2625.1,2624.6,3.8101]
[1723796224836,2.3626,2625.1,2624.6,3.8101]
[1723796225036,0.16150076,2625.0,2624.7,3.80995]
[1723796225248,0.16150076,2624.9,2624.7,3.80995]
[1723796225425,0.16150076,2624.8,2624.7,3.80995]
[1723796226190,0.16150076,2624.8,2624.7,7.69609613]
[1723796226325,2.4588,2625.4,2625.1,3.80936]
[1723796226515,0.16143424,2625.3,2625.1,3.80936]
[1723796226720,0.16143424,2625.2,2625.1,3.80936]
[1723796228033,0.16143424,2625.2,2624.9,38.80953]
[1723796228232,2.4588,2625.0,2624.6,3.81007]
[1723796228438,2.4588,2625.0,2623.7,1.2016252]
[1723796228439,2.69639211,2624.9,2624.2,7.62119]
[1723796228768,2.62023424,2624.8,2624.2,3.81061]
[1723796228921,2.396,2624.6,2624.2,3.81061]
[1723796229289,0.16143424,2624.5,2624.2,3.81061]
[1723796229572,0.16143424,2624.5,2624.2,3.8106]
[1723796229771,2.396,2624.4,2624.0,3.81086]
[1723796229969,2.396,2624.4,2623.8,38.81118]
[1723796229970,0.16155301,2624.3,2623.9,3.81104]
[1723796230121,0.16155301,2624.2,2623.9,3.81104]
[1723796231469,2.4633,2624.1,2623.0,0.3818]
[1723796231759,2.4633,2624.1,2622.9,6.09032]
[1723796231760,0.50019618,2624.0,2623.4,3.81174]
[1723796231919,0.16155301,2623.9,2623.4,3.81174]
[1723796232923,0.16155301,2623.9,2623.5,3.8117]
[1723796233267,0.16155301,2623.9,2623.6,7.62292]
[1723796233467,0.16155301,2623.9,2623.6,7.62291]
[1723796233621,0.16155301,2623.9,2623.6,7.62292]
[1723796233826,0.2624853,2624.0,2623.6,3.81145]
[1723796234055,0.16166321,2623.9,2623.6,3.81145]
[1723796234230,9.8433,2624.1,2623.2,3.139]
[1723796234431,9.8433,2624.1,2623.9,3.811]
[1723796234662,7.38,2624.1,2623.9,3.811]
[1723796234849,7.38,2624.1,2624.0,3.81097]
[1723796235027,7.38,2624.1,2624.0,7.62194]
[1723796236957,1.46072453,2624.9,2623.7,6.27548]
[1723796236958,2.4747,2624.7,2624.4,3.81035]
[1723796237187,0.16156759,2624.6,2624.5,3.81024]
[1723796237338,2.4747,2624.7,2624.6,3.8101]
[1723796237672,2.4747,2624.7,2624.5,3.81024]
[1723796237673,2.63623265,2624.7,2624.5,3.81024]
[1723796237859,2.4747,2624.7,2624.5,3.81015]
[1723796238066,2.4747,2625.0,2624.6,3.81001]
[1723796238355,0.16152416,2624.9,2624.6,3.81001]
[1723796238665,0.16152416,2624.8,2624.6,3.81001]
[1723796238838,2.4747,2625.0,2624.5,3.81015]
[1723796238839,2.4747,2625.0,2624.7,3.80994]
[1723796239038,0.16151237,2624.9,2624.7,3.80994]
[1723796239358,2.4747,2625.0,2624.7,3.80994]
[1723796239536,0.16150328,2624.9,2624.8,3.80981]
[1723796239857,2.4747,2625.0,2624.8,3.80981]
[1723796240157,0.16149468,2624.9,2624.8,3.80981]
[1723796240358,2.4747,2625.0,2624.8,3.80981]
[1723796240859,0.16149438,2624.9,2624.5,3.81016]
[1723796241182,0.16152675,2624.8,2624.3,3.81041]
[1723796241328,0.16152675,2624.7,2624.3,3.81041]
[1723796241527,0.16152675,2624.6,2624.3,3.81041]
[1723796241728,1.47091811,2624.9,2624.3,3.81041]
[1723796241944,0.55612972,2624.8,2624.3,3.81041]
[1723796242243,0.16156791,2624.7,2624.4,3.81031]
[1723796242443,0.39456181,2624.8,2624.4,3.81031]
[1723796243624,2.4747,2625.0,2624.2,35.0]
[1723796243898,0.1615022,2624.9,2624.5,3.81011]
[1723796244024,0.1615022,2624.8,2624.5,3.81011]
[1723796245026,0.1615022,2624.8,2624.3,3.81051]
[1723796245245,0.1615022,2624.8,2624.1,3.8108]
[1723796245246,2.4852,2624.7,2624.1,3.8108]
[1723796245462,0.1615022,2624.6,2624.1,3.8108]
[1723796245872,2.4852,2624.7,2624.1,3.8108]
[1723796246160,0.93996227,2624.6,2623.8,35.0]
[1723796246361,2.2548,2624.3,2623.5,3.81164]
[1723796246562,2.2548,2624.1,2623.5,3.8116]
[1723796246764,0.16159193,2624.0,2623.5,3.8116]
[1723796246963,0.16159193,2624.0,2623.6,3.81151]
[1723796247992,0.16159193,2624.0,2623.7,3.81128]
[1723796248193,0.16159193,2624.0,2623.8,3.81112]
[1723796248351,2.2548,2624.1,2623.9,3.81112]
[1723796248557,2.2548,2624.1,2624.0,3.81097]
[1723796249480,2.41640725,2624.1,2624.0,3.81097]
[1723796249796,2.41640725,2624.1,2623.9,7.62224]
[1723796250006,2.2548,2624.1,2623.9,7.62215]
[1723796250163,2.2548,2624.1,2623.9,3.81103]
[1723796250698,2.2548,2624.1,2624.0,3.81097]
[1723796250859,2.41641172,2624.1,2623.9,3.81103]
[1723796251061,2.2548,2624.1,2623.9,3.81103]
[1723796251261,2.48028,2624.1,2623.7,3.81132]
[1723796251468,2.48028,2624.1,2623.7,7.62265]
[1723796251672,0.16163351,2624.0,2623.7,7.62265]
[1723796251878,2.48028,2624.1,2623.7,7.62265]
[1723796252076,0.16163405,2624.0,2623.8,3.81126]
[1723796252313,2.2548,2624.1,2623.9,3.81112]
[1723796252512,0.16162363,2624.0,2623.9,3.81112]
[1723796253065,0.16162004,2624.0,2623.9,7.62224]
[1723796253266,2.2548,2624.1,2624.0,3.81097]
[1723796253569,2.41641003,2624.1,2624.0,3.81097]
[1723796254903,2.65805103,2624.1,2623.7,3.81131]
[1723796255198,0.16161003,2624.0,2623.7,3.81131]
[1723796255398,0.16161003,2624.0,2623.6,3.81155]
[1723796256682,2.3404,2623.9,2623.5,3.81163]
[1723796256908,0.16161003,2623.8,2623.4,3.81182]
[1723796257207,0.16161003,2623.8,2623.3,3.81193]
[1723796257208,0.16161003,2623.7,2623.3,7.62381]
[1723796257405,0.16161003,2623.6,2623.4,3.81181]
[1723796257570,2.50201003,2623.5,2623.4,3.81181]
[1723796258079,2.75221103,2623.5,2623.1,3.81216]
[1723796258401,0.16161003,2623.4,2623.0,3.8124]
[1723796258609,0.43683113,2623.4,2623.0,3.8124]
[1723796258782,0.16161003,2623.3,2623.1,3.81227]
[1723796258969,0.16161003,2623.3,2623.1,7.62454]
[1723796259511,0.16161003,2623.2,2623.1,7.62454]
[1723796259713,0.16161003,2623.2,2623.1,3.81227]
[1723796259867,0.16161003,2623.4,2623.1,3.81227]
[1723796260204,0.16161003,2623.3,2623.1,3.81227]
[1723796260404,0.16161003,2623.2,2623.1,3.81227]
[1723796260605,2.57444,2623.5,2623.1,3.81227]
[1723796260805,0.1617382,2623.4,2623.1,3.81227]
[1723796261012,0.1617382,2623.3,2623.1,3.81227]
[1723796261211,2.57444,2623.5,2623.0,3.81241]
[1723796261512,0.41919317,2623.4,2623.0,3.81234]
[1723796261806,0.16174917,2623.3,2623.0,7.62469]
[1723796262110,2.4724,2623.2,2622.8,3.81261]
[1723796262341,2.4724,2623.0,2622.5,3.81314]
[1723796262490,2.63418461,2622.9,2622.3,3.81331]
[1723796262675,2.2793,2622.7,2622.3,3.81331]
[1723796262876,0.40589307,2622.6,2622.3,7.62667]
[1723796263088,0.24410846,2622.6,2622.3,7.62667]
[1723796263283,0.24410846,2622.6,2622.3,3.81331]
[1723796264414,2.4229,2622.5,2621.9,3.81394]
[1723796264715,2.4229,2622.4,2622.0,3.81387]
[1723796265037,0.24229,2622.3,2622.1,3.81365]
[1723796265179,2.4229,2622.4,2622.1,3.81365]
[1723796265698,2.4229,2622.4,2622.1,7.62728]
[1723796265874,2.4229,2622.4,2622.1,3.81364]
[1723796267190,2.66519,2622.4,2621.9,3.81394]
[1723796267803,2.66519,2622.4,2621.9,7.62788]
[1723796268111,0.266519,2622.3,2621.9,7.62787]
[1723796268281,0.266519,2622.3,2621.9,7.62786]
[1723796268682,0.266519,2622.3,2622.0,3.81387]
[1723796271107,2.4385,2622.2,2621.9,3.81393]
[1723796271429,2.4385,2622.2,2621.7,3.81427]
[1723796272826,2.4385,2622.2,2621.8,3.81415]
[1723796275225,2.4385,2622.2,2621.7,3.81423]
[1723796275394,2.4385,2622.2,2621.8,3.81415]
[1723796275745,2.68235,2622.2,2621.8,3.81415]
[1723796278547,2.4385,2622.2,2621.9,3.814]
[1723796278827,2.4385,2622.2,2622.0,3.81387]
[1723796280430,2.2723,2622.6,2622.3,3.81334]
[1723796282043,2.2723,2622.6,2622.3,7.6267]
[1723796282360,2.2723,2622.6,2622.3,3.81334]
[1723796282776,2.2723,2622.6,2622.4,3.81328]
[1723796283153,2.2723,2622.6,2622.5,3.81315]
[1723796283817,2.2723,2622.6,2622.3,3.81334]
[1723796284463,2.2723,2622.6,2622.3,7.6267]
[1723796284629,2.2723,2622.6,2622.3,3.81334]
[1723796285037,2.2723,2622.6,2622.3,7.62669]
[1723796285551,0.16188862,2622.5,2622.3,3.81334]
[1723796285721,2.2723,2622.6,2622.3,3.81334]
[1723796285927,2.2723,2622.6,2622.5,3.81315]
[1723796286128,2.43416844,2622.6,2622.3,3.81332]
[1723796286319,2.43416844,2622.6,2622.5,3.81315]
[1723796286320,2.2723,2622.6,2622.5,3.81315]
[1723796286533,2.43417099,2622.6,2622.3,3.81332]
[1723796286766,0.16187099,2622.5,2622.3,3.81332]
[1723796287951,0.16187099,2622.5,2622.3,7.62666]
[1723796288130,0.16187099,2622.5,2622.3,3.81332]
[1723796289052,0.16187099,2622.5,2622.3,7.62667]
[1723796289273,0.16187099,2622.5,2622.3,3.81332]
[1723796289485,2.2723,2622.6,2622.3,7.62668]
[1723796289624,0.389117,2622.5,2622.2,3.81357]
[1723796289823,0.161887,2622.4,2622.2,3.81357]
[1723796290224,0.161887,2622.3,2622.1,3.81363]
[1723796290429,11.19252,2623.0,2621.8,3.81411]
[1723796290430,2.3311,2622.1,2621.8,3.81411]
[1723796290741,0.161887,2622.0,2621.7,3.81425]
[1723796290953,0.161887,2621.9,2621.7,7.62849]
[1723796291123,2.3311,2622.1,2621.7,7.62849]
[1723796291124,2.93069624,2622.1,2621.8,3.81417]
[1723796291322,0.1619813,2622.0,2621.8,3.81417]
[1723796291521,0.1619813,2621.9,2621.8,3.81417]
[1723796293659,0.1619813,2621.9,2621.8,7.62834]
[1723796295260,0.1619813,2621.9,2621.7,3.81421]
[1723796295460,0.1619813,2621.8,2621.7,3.81421]
[1723796296800,0.1619813,2621.8,2621.7,7.62852]
[1723796296961,2.3311,2622.1,2621.9,3.81394]
[1723796297166,0.16194591,2622.0,2621.9,7.62796]
[1723796297796,2.3311,2622.1,2622.0,3.81388]
[1723796297991,2.49303197,2622.1,2622.0,3.81388]
[1723796299380,2.49303197,2622.1,2622.0,7.62776]
[1723796299607,0.16193197,2622.1,2622.0,7.62776]
[1723796300401,0.16193197,2622.1,2622.0,3.81388]
[1723796301610,2.4714,2622.4,2622.0,3.81388]
[1723796301800,0.16193664,2622.3,2622.0,3.81388]
[1723796301994,0.16193664,2622.2,2622.0,3.81388]
[1723796302195,0.16193664,2622.1,2622.0,3.81388]
[1723796302404,0.16193664,2622.1,2621.9,3.81402]
[1723796302607,0.16193664,2622.0,2621.9,3.81402]
[1723796303494,0.16193664,2622.0,2621.9,7.7043188]
[1723796303810,2.4714,2622.4,2622.2,3.81359]
[1723796303997,2.4714,2622.4,2622.3,3.81344]
[1723796304227,2.63330678,2622.4,2622.3,3.81344]
[1723796304808,0.16190678,2622.4,2622.3,3.81344]
[1723796305231,0.16190678,2622.4,2622.3,7.62688]
[1723796305707,2.4744,2622.6,2622.4,3.8132]
[1723796306012,0.16187778,2622.5,2622.4,3.8132]
[1723796306211,0.16187778,2622.5,2622.4,7.6265]
[1723796306943,0.16187778,2622.5,2622.3,3.81339]
[1723796307241,0.16187778,2622.4,2622.3,3.81339]
[1723796308904,0.16187778,2622.4,2622.3,7.62683]
[1723796310909,0.16187778,2622.4,2622.3,3.81339]
[1723796313893,3.67310111,2622.6,2622.1,3.81362]
[1723796314050,0.16187079,2622.5,2622.4,3.8133]
[1723796314238,12.64281086,2622.8,2622.7,7.62572]
[1723796314239,7.38,2622.8,2622.7,7.62572]
[1723796314569,0.16179212,2622.8,2622.7,7.62572]
[1723796314776,0.16179212,2622.8,2622.6,3.81298]
[1723796314979,0.16179212,2622.7,2622.6,3.81298]
[1723796315347,0.16179212,2622.7,2622.5,7.62614]
[1723796315550,0.16179212,2622.6,2622.5,7.62614]
[1723796316236,0.16179212,2622.6,2622.5,3.81307]
[1723796316654,0.16179212,2622.6,2621.9,2.3296]
[1723796316655,2.46869212,2622.6,2622.2,3.81346]
[1723796316856,2.3069,2622.4,2622.0,3.8138]
[1723796317092,0.40866133,2622.3,2622.0,3.8138]
[1723796317264,0.16179212,2622.2,2622.0,3.8138]
[1723796317591,0.16179212,2622.1,2622.0,3.8138]
[1723796317892,0.1619432,2622.1,2622.0,3.8138]
[1723796318271,0.1619432,2622.1,2621.8,7.62813]
[1723796318467,1.44557032,2622.3,2621.8,3.81404]
[1723796318468,0.1619432,2622.0,2621.8,3.81404]
[1723796318792,0.1619432,2621.9,2621.8,7.62821]
[1723796318991,1.19870111,2622.3,2622.0,3.81378]
[1723796319211,0.16194007,2622.2,2622.0,3.81378]
[1723796319415,0.16194007,2622.1,2622.0,3.81378]
[1723796320018,2.2971,2622.0,2621.8,3.81404]